[Event "Szansa Chess Open 2022"]
[Site "Warsaw"]
[Date "2022.09.18"]
[Round "8"]
[White "Smykalo, Severyn"]
[Black "Polak, Michal"]
[Result "1-0"]
[ECO "E36"]
[WhiteElo "1840"]
[BlackElo "1954"]
[Annotator "TA"]
[PlyCount "103"]
[EventDate "2022.09.17"]
[EventCountry "POL"]
[SourceTitle "playchess.com"]
[Source "ChessBase"]
[SourceQuality "1"]
[TimeControl "900+10"]

{[%evp 15,103,3,30,-5,-11,-15,-8,-16,-18,-52,-56,-58,-58,-39,0,0,0,-53,0,0,0,0,0,0,10,0,43,0,61,0,17,-39,0,0,0,0,0,-37,-21,-74,-47,-67,0,0,0,0,160,157,156,155,152,152,167,172,183,140,145,145,137,115,151,143,149,124,291,291,254,239,255,266,450,36,482,450,358,409,669,664,588,588,2023,1791,1798,1563,1903,1818,12820,6121,29972,29963]} 1. d4 {[%emt 0:00:01]} Nf6 {[%emt 0:00:12]} 2. c4 {[%emt 0:00:01]} e6 {[%emt 0:00:01]} 3. Nc3 {[%emt 0:00:02]} Bb4 {[%emt 0:00:01]} 4. Qc2 {[%emt 0:00:01]} d5 {[%emt 0:00:10]} 5. a3 {[%emt 0:00:26]} Bxc3+ {[%emt 0:00:04]} 6. Qxc3 {[%emt 0:00:01]} O-O {[%emt 0:00:34]} 7. Nf3 {[%emt 0:00:10]} dxc4 {[%emt 0:00:39]} 8. Qxc4 {[%emt 0:00:02]} b6 {[%emt 0:00:04]} 9. Bf4 {[%emt 0:00:16] E36: Nimzo-Indian: Classical: 4...d5 5 a3.} Ba6 {[%emt 0:02:20]} 10. Qc2 {[%emt 0:01:55]} Nbd7 {[%emt 0:00:31]} 11. g3 {[%emt 0:00:53] The position is equal.} c5 {[%emt 0:01:28] [#]} 12. dxc5 $146 {[%emt 0:01:07]} ({Predecessor:} 12. Bg2 cxd4 13. Bd6 Nc5 14. Bxc5 bxc5 15. Qxc5 d3 16. O-O dxe2 17. Rfe1 Nd7 18. Qe3 {0-1 (45) Gyerpal,A (2171)-Rybka,S (2262) Stara Lubovna 2022}) 12... Nxc5 {[%emt 0:00:07] White must now prevent ...Rc8.} 13. Bg2 {[%emt 0:00:35]} Rc8 {[%emt 0:00:02][%cal Oc5d3]} 14. O-O {[%emt 0:02:07]} Nd3 {[%emt 0:01:06]} 15. Qa4 {[%emt 0:00:34]} Nc5 {[%emt 0:01:16] Pair of Knights!} 16. Qc2 {[%emt 0:00:58]} Nd3 {[%emt 0:01:30]} 17. Qa4 $11 {[%emt 0:00:23]} Nxf4 {[%emt 0:00:27]} 18. Qxa6 {[%emt 0:00:11]} Nxg2 {[%emt 0:00:04]} 19. Rfd1 {[%emt 0:00:22]} Qc7 {[%emt 0:00:22][%cal Og2f4] And now ...Nf4! would win.} 20. Kxg2 {[%emt 0:00:03]} Rfd8 {[%emt 0:01:05]} 21. b4 {[%emt 0:00:42][%cal Oa1c1]} (21. Rac1 $5 Qb8 22. Rxd8+ Rxd8 {[#]} 23. Nd4 $1 $14) 21... Ne4 {[%emt 0:01:09]} (21... Rxd1 $11 22. Rxd1 h6) 22. h4 {[%emt 0:02:07]} (22. Rac1 $1 $14 Nc3 23. Rd2 Rxd2 24. Nxd2) 22... h6 {[%emt 0:00:02]} 23. Kg1 {[%emt 0:01:41]} (23. Rac1 $11 Qb8 24. Rxc8 Rxc8 25. Rd7) 23... Qc2 {[%emt 0:02:04]} 24. Nd4 {[%emt 0:01:59]} Qc4 {[%emt 0:00:53]} 25. Qxc4 {[%emt 0:00:54]} Rxc4 {[%emt 0:00:01]} 26. e3 {[%emt 0:00:03]} Rdc8 {[%emt 0:01:04]} 27. b5 {[%emt 0:00:12]} (27. Kg2 $11 {remains equal.}) 27... Nc3 {[%emt 0:00:44]} 28. Rd3 {[%emt 0:01:03]} R4c5 {[%emt 0:01:00]} (28... R8c5 $15) 29. a4 $1 {[%emt 0:00:34]} Rd8 {[%emt 0:00:25] [#] ...e5 is the strong threat.} 30. Ra3 {[%emt 0:00:17]} e5 $2 {[%emt 0:00:32]} (30... Ne4 $11) 31. Raxc3 $16 {[%emt 0:00:11]} Rxc3 {[%emt 0:00:01]} 32. Rxc3 {[%emt 0:00:01]} exd4 {[%emt 0:00:01][%mdl 4096] Endgame KR-KR} 33. Rd3 {[%emt 0:00:05]} Rc8 {[%emt 0:00:29]} 34. Rxd4 {[%emt 0:00:14]} Rc7 {[%emt 0:00:09]} 35. Kg2 {[%emt 0:00:03]} Kf8 {[%emt 0:00:01]} 36. e4 {[%emt 0:00:04]} Ke7 {[%emt 0:00:02]} 37. Kf3 {[%emt 0:00:05]} Rc3+ {[%emt 0:00:03]} 38. Kf4 {[%emt 0:00:08]} h5 {[%emt 0:00:10]} 39. f3 {[%emt 0:00:18][%cal Bf2f3,Bf3g4,Bg4h5,Bh5h6][%mdl 32]} g6 $2 {[%emt 0:00:26]} (39... Ke6 $16) 40. g4 $18 {[%emt 0:00:04]} hxg4 {[%emt 0:00:04]} 41. fxg4 {[%emt 0:00:03]} ({Less strong is} 41. Kxg4 Rc1 $14) 41... Rh3 {[%emt 0:00:04]} 42. Kg5 {[%emt 0:00:07]} Ke6 $2 {[%emt 0:00:30]} (42... Rc3 43. h5 gxh5) 43. Rc4 $2 {[%emt 0:00:27]} (43. h5 $18) 43... Re3 $2 {[%emt 0:00:09][%mdl 8192]} (43... f6+ $1 $14 44. Kf4 (44. Kxg6 Rxh4 45. g5 fxg5 $14) 44... Rxh4) 44. h5 {[%emt 0:00:09]} gxh5 {[%emt 0:00:02]} 45. gxh5 {[%emt 0:00:02]} f6+ {[%emt 0:00:14]} (45... Rg3+ $142 46. Kf4 Rh3 47. Rc6+ Kd7) 46. Kg6 {[%emt 0:00:05]} Rg3+ {[%emt 0:00:11]} 47. Kh7 {[%emt 0:00:02]} Rg4 {[%emt 0:00:07]} 48. h6 {[%emt 0:00:14]} Ke5 {[%emt 0:00:04]} 49. Rc7 {[%emt 0:00:32]} Kd6 {[%emt 0:00:11]} 50. Rxa7 {[%emt 0:00:09]} Rxe4 {[%emt 0:00:02]} 51. Kg8 {[%emt 0:00:03]} (51. Kg7 $142 f5 52. h7) 51... Re8+ {[%emt 0:00:30]} 52. Kf7 {[%emt 0:00:12] Weighted Error Value: White=0.35/Black=0.71} 1-0

[Event "Szansa Chess Open 2022"]
[Site "Warsaw"]
[Date "2022.09.18"]
[Round "8"]
[White "Khamidov, Abdulla"]
[Black "Kokoszczynski, Jan"]
[Result "0-1"]
[ECO "C77"]
[WhiteElo "1804"]
[BlackElo "2313"]
[Annotator "ChessBase"]
[PlyCount "88"]
[EventDate "2022.09.17"]
[EventCountry "POL"]
[SourceTitle "playchess.com"]
[Source "ChessBase"]
[SourceQuality "1"]
[TimeControl "900+10"]

1. e4 {[%emt 0:00:02]} e5 {[%emt 0:00:01]} 2. Nf3 {[%emt 0:00:02]} Nc6 {[%emt 0:00:01]} 3. Bb5 {[%emt 0:00:02]} a6 {[%emt 0:00:01]} 4. Ba4 {[%emt 0:00:02]} Nf6 {[%emt 0:00:02]} 5. Bxc6 {[%emt 0:00:02]} dxc6 {[%emt 0:00:04]} 6. d3 {[%emt 0:00:02]} Bd6 {[%emt 0:00:26]} 7. b3 {[%emt 0:00:06]} Nd7 {[%emt 0:00:02]} 8. Bb2 {[%emt 0:00:02]} Qe7 {[%emt 0:00:02]} 9. Nbd2 {[%emt 0:00:02]} Nc5 {[%emt 0:00:12]} 10. Nc4 {[%emt 0:00:12]} f6 {[%emt 0:00:04]} 11. Ne3 {[%emt 0:00:09]} Ne6 {[%emt 0:00:41]} 12. Nf5 {[%emt 0:00:07]} Qf8 {[%emt 0:00:08]} 13. g3 {[%emt 0:02:22]} Bd7 {[%emt 0:00:07]} 14. Qe2 {[%emt 0:00:16]} g6 {[%emt 0:00:22]} 15. Nxd6+ {[%emt 0:00:22]} Qxd6 {[%emt 0:00:02]} 16. O-O-O {[%emt 0:00:02]} O-O-O {[%emt 0:00:50]} 17. d4 {[%emt 0:00:09]} exd4 {[%emt 0:00:06]} 18. Nxd4 {[%emt 0:00:03]} Nxd4 {[%emt 0:00:23]} 19. Rxd4 {[%emt 0:00:02]} Qe7 {[%emt 0:00:12]} 20. Rhd1 {[%emt 0:00:15]} Be6 {[%emt 0:00:07]} 21. Rxd8+ {[%emt 0:00:45]} Rxd8 {[%emt 0:00:01]} 22. Rxd8+ {[%emt 0:00:01]} Qxd8 {[%emt 0:00:14]} 23. Qe3 {[%emt 0:01:01]} f5 {[%emt 0:01:43]} 24. e5 {[%emt 0:00:43]} b6 {[%emt 0:00:55]} 25. Qh6 {[%emt 0:00:39]} Qd7 {[%emt 0:00:15]} 26. Bc3 {[%emt 0:01:14]} Kb7 {[%emt 0:00:04]} 27. h4 {[%emt 0:00:17]} c5 {[%emt 0:00:40]} 28. h5 {[%emt 0:00:12]} Qf7 {[%emt 0:00:04]} 29. hxg6 {[%emt 0:00:13]} hxg6 {[%emt 0:00:01]} 30. Bd2 {[%emt 0:00:08]} a5 {[%emt 0:00:12]} 31. Qe3 {[%emt 0:02:08]} Qd7 {[%emt 0:00:24]} 32. Kb2 {[%emt 0:02:00]} a4 {[%emt 0:01:14]} 33. Bc3 {[%emt 0:00:26]} Qd5 {[%emt 0:01:17]} 34. Qd2 {[%emt 0:00:23]} Qf3 {[%emt 0:00:55]} 35. Qg5 {[%emt 0:01:32]} a3+ {[%emt 0:00:05]} 36. Kxa3 {[%emt 0:00:06]} Qxc3 {[%emt 0:00:01]} 37. Qxg6 {[%emt 0:00:04]} Qxe5 {[%emt 0:00:03]} 38. f4 {[%emt 0:00:03]} Qe2 {[%emt 0:00:48]} 39. c4 {[%emt 0:00:02]} Qe3 {[%emt 0:00:30]} 40. Qg7 {[%emt 0:00:13]} Bxc4 {[%emt 0:00:24]} 41. Qe5 {[%emt 0:00:09]} Qxe5 {[%emt 0:00:13]} 42. fxe5 {[%emt 0:00:02]} Be6 {[%emt 0:00:00]} 43. Kb2 {[%emt 0:00:01]} Kc6 {[%emt 0:00:01]} 44. Kc3 {[%emt 0:00:01]} Kd5 {[%emt 0:00:01]} 0-1

[Event "Szansa Chess Open 2022"]
[Site "Warsaw"]
[Date "2022.09.18"]
[Round "8"]
[White "Rekuc, Patryk"]
[Black "Borawski, Jakub"]
[Result "1-0"]
[ECO "C54"]
[WhiteElo "1777"]
[BlackElo "2222"]
[Annotator "TA"]
[PlyCount "96"]
[EventDate "2022.09.17"]
[EventCountry "POL"]
[SourceTitle "playchess.com"]
[Source "ChessBase"]
[SourceQuality "1"]
[TimeControl "900+10"]

{[%evp 17,96,22,28,33,34,20,46,43,72,0,0,-8,6,0,0,-12,230,-109,-50,-97,-88,-99,-42,-162,-146,-160,-137,-179,-141,-189,-193,-208,-151,-148,-150,-139,-141,-563,-189,-197,-150,-150,-150,-309,-295,-317,-310,-309,-200,-199,-195,-209,-209,-222,-222,-222,-221,-222,-222,-236,-172,-172,-174,-174,-174,-181,-168,-183,-191,-189,-181,-181,-168,-175,-175,-182,0,-183,0,-183,-183]} 1. e4 {[%emt 0:00:01]} e5 {[%emt 0:00:02]} 2. Nf3 {[%emt 0:00:02]} Nc6 {[%emt 0:00:01]} 3. Bc4 {[%emt 0:00:03]} Bc5 {[%emt 0:00:02]} 4. c3 {[%emt 0:00:02]} Nf6 {[%emt 0:00:01]} 5. d3 {[%emt 0:00:02]} a6 {[%emt 0:00:15]} 6. Bb3 {[%emt 0:00:03]} Ba7 {[%emt 0:00:19]} 7. Nbd2 {[%emt 0:00:07]} O-O {[%emt 0:00:51]} 8. O-O {[%emt 0:00:03]} d6 {[%emt 0:01:00]} 9. h3 {[%emt 0:00:06]} Ne7 {[%emt 0:00:28]} 10. Re1 {[%emt 0:00:02] C54: Giuoco Piano: 4 c3 Nf6, main lines with 5 d4 and 5 d3.} Ng6 {[%emt 0:00:06][%cal Oc8h3]} 11. d4 {[%emt 0:00:06]} Qe7 {[%emt 0:02:37]} 12. Nf1 {[%emt 0:00:34] White is slightly better.} Nh5 {[%emt 0:03:15] [#]} 13. Nxe5 $146 {[%emt 0:01:07]} ({Predecessor:} 13. Ne3 Nhf4 14. Nd5 Nxd5 15. Bxd5 h6 16. Be3 Qf6 17. Nh2 Nf4 18. Qf3 Nxd5 19. exd5 Qxf3 20. Nxf3 {1-0 (56) Cichon,J (1984)-Zabrzanska,W (1969) Ustron 2021}) 13... dxe5 $11 {[%emt 0:00:08]} 14. Qxh5 {[%emt 0:00:05]} exd4 {[%emt 0:00:07]} 15. cxd4 {[%emt 0:00:29]} Bxd4 {[%emt 0:00:08]} 16. Ne3 {[%emt 0:00:02]} Qxe4 $2 {[%emt 0:00:49]} (16... c6 $11 {and Black stays safe.}) 17. Bc2 $2 {[%emt 0:01:02]} (17. Nc2 $18 Qd3 18. Rd1 Bxf2+ 19. Kxf2) 17... Qe5 {[%emt 0:02:22]} (17... Qc6 $17 {And now ...Bxe3 would win.} 18. Qd5 Qf6) 18. Qf3 {[%emt 0:00:03]} (18. Bxg6 $15 {is more appropriate.} fxg6 19. Qxe5 Bxe5 20. Nd5) 18... c6 $17 {[%emt 0:00:44]} 19. Bd2 {[%emt 0:00:03]} Qf6 {[%emt 0:00:07]} ({Of course not} 19... Bxb2 $6 20. Rab1 Be6 21. Nd1) ({Black should try} 19... Nh4 $17 20. Qe4 Qxe4 21. Bxe4 Be6) 20. Qe4 {[%emt 0:00:45]} (20. Qxf6 $15 Bxf6 21. Bb4) 20... Be6 $19 {[%emt 0:00:44]} 21. Rad1 {[%emt 0:00:51]} Rfe8 {[%emt 0:00:12][%cal Oe6h3]} ({Stronger than} 21... Bxa2 22. Ng4 Qd6 23. Bc3 $11) 22. Qd3 {[%emt 0:00:28]} Rad8 {[%emt 0:00:27]} ({Worse is} 22... Bxa2 23. Ng4 Qd6 24. Rxe8+ Rxe8 25. Bc3 $15) 23. b3 {[%emt 0:00:26]} (23. Bc3 $17 Bxc3 24. Qxc3) 23... Bb6 {[%emt 0:00:30]} 24. Qf1 {[%emt 0:00:43]} Nf4 {[%emt 0:00:23] aiming for ...Qg5.} 25. Ng4 {[%emt 0:01:20]} Bxg4 {[%emt 0:00:33]} 26. hxg4 {[%emt 0:00:02]} g6 {[%emt 0:00:53]} 27. g3 $2 {[%emt 0:00:50][%mdl 8192] [#]} (27. Bc1 $17 {is tougher.}) 27... Rxe1 $2 {[%emt 0:00:10]} (27... Bxf2+ $1 {[%mdl 512]} 28. Kxf2 {[#]} Rxd2+ $1 {[%mdl 512]} 29. Rxd2 Nd3+ 30. Kg1 Rxe1 31. Bxd3 Qd4+ 32. Rf2 Rxf1+ 33. Bxf1 Qxg4) 28. Bxe1 {[%emt 0:00:14]} Rxd1 {[%emt 0:00:25]} (28... Nd5 $19 29. Rd3 Qb2) 29. Bxd1 $17 {[%emt 0:00:02]} Qa1 {[%emt 0:01:11][%csl LRa2,LRd1]} 30. Bd2 $2 {[%emt 0:00:42] [#]} (30. Ba5 $17 Bxa5 31. gxf4) 30... Nh3+ $1 $19 {[%emt 0:00:18][%mdl 512]} 31. Kg2 {[%emt 0:00:34]} Nxf2 {[%emt 0:00:01]} 32. Bf3 {[%emt 0:00:27]} Qxf1+ {[%emt 0:00:15]} 33. Kxf1 {[%emt 0:00:01][%mdl 4096] Endgame KBB-KBN} Nd3 {[%emt 0:00:06]} 34. Be2 {[%emt 0:00:08]} Nc5 {[%emt 0:00:32]} 35. Bf3 {[%emt 0:00:26]} Bc7 {[%emt 0:00:12]} 36. Kg2 {[%emt 0:00:04]} f6 {[%emt 0:00:10]} 37. Be3 {[%emt 0:00:13]} Ne6 {[%emt 0:00:03]} 38. a4 {[%emt 0:00:12]} a5 {[%emt 0:00:21]} 39. Be2 {[%emt 0:00:02]} Kf7 {[%emt 0:00:19]} 40. Bd3 {[%emt 0:00:09]} Ke7 {[%emt 0:00:03]} 41. Bc4 {[%emt 0:00:17]} Bd6 {[%emt 0:00:05]} 42. Bd3 {[%emt 0:00:16]} Bc5 {[%emt 0:00:07]} 43. Bd2 {[%emt 0:00:04]} Bb4 {[%emt 0:00:01]} 44. Be3 {[%emt 0:00:03]} Kd6 {[%emt 0:00:09]} 45. Bc4 {[%emt 0:00:02]} Ke5 {[%emt 0:00:23]} 46. Bb6 {[%emt 0:00:30]} Kd6 {[%emt 0:00:38]} 47. Be3 $1 {[%emt 0:00:07] This bishop pair is nice.} Ke5 {[%emt 0:00:02]} 48. Bb6 $1 {[%emt 0:00:01]} Bc3 {[%emt 0:00:35][%mdl 32768] Weighted Error Value: White=0.44/Black=0.50. Loss on time!?} 1-0

[Event "Szansa Chess Open 2022"]
[Site "Warsaw"]
[Date "2022.09.18"]
[Round "8"]
[White "Piotrowski, Daniel"]
[Black "Fiszer, Bartosz"]
[Result "0-1"]
[ECO "B32"]
[WhiteElo "1758"]
[BlackElo "2232"]
[Annotator "TA"]
[PlyCount "130"]
[EventDate "2022.09.17"]
[EventCountry "POL"]
[SourceTitle "playchess.com"]
[Source "ChessBase"]
[SourceQuality "1"]
[TimeControl "900+10"]

{[%evp 13,130,33,26,0,33,21,15,10,18,8,33,-7,0,-34,-20,-65,-53,-74,-72,-87,-56,-56,-62,-68,-47,-37,-27,-27,-26,-32,-25,-33,0,-10,-14,-27,-16,-128,-133,-136,-132,-141,-146,-135,-118,-151,-143,-137,-142,-132,-128,-245,-168,-165,-140,-132,-39,-81,0,-382,-382,-382,-382,-382,-380,-368,-374,-382,-382,-402,-390,-421,-417,-408,-384,-440,-367,-461,-379,-413,-352,-385,-382,-495,-489,-539,-522,-560,-556,-538,-524,-495,-495,-674,-666,-750,-729,-779,-766,-778,-710,-1120,-1067,-1124,-1027,-29983,-29984,-29983,-29984,-29987,-29984,-29991,-29992,-29992,-29992,-29997,-29997,-29997,-29988]} 1. e4 {[%emt 0:00:02]} c5 {[%emt 0:00:01]} 2. Nf3 {[%emt 0:00:02][%cal Bg1f3,Bf3d4,Bd4b5,Bb5a3,Ba3c4][%mdl 32]} Nc6 {[%emt 0:00:01]} 3. d4 {[%emt 0:00:02]} cxd4 {[%emt 0:00:01]} 4. Nxd4 {[%emt 0:00:02]} e5 {[%emt 0:00:02]} 5. Nb5 {[%emt 0:00:14]} d6 {[%emt 0:00:01]} 6. N1c3 {[%emt 0:00:40]} a6 {[%emt 0:00:01]} 7. Na3 {[%emt 0:00:01]} Be7 {[%emt 0:00:01]} 8. Bd3 {[%emt 0:01:01] B32: Sicilian: Löwenthal and Kalashnikov Variations.} Bg5 {[%emt 0:00:48] [#]} 9. Nc4 $146 {[%emt 0:02:23]} ({Predecessor:} 9. O-O Bxc1 10. Qxc1 Nf6 11. Qe3 O-O 12. Rad1 b5 13. Nd5 Be6 14. f4 exf4 15. Qxf4 Bxd5 16. exd5 {0-1 (30) Zhu,L (1989)-Cornette,D (2378) Auckland 2016}) 9... Bxc1 {[%emt 0:00:10]} 10. Qxc1 {[%emt 0:00:39] The position is equal.} Nf6 {[%emt 0:00:35]} 11. Qg5 {[%emt 0:01:52]} O-O {[%emt 0:00:20]} 12. Ne3 {[%emt 0:00:15]} Be6 {[%emt 0:01:09]} 13. O-O-O {[%emt 0:00:30]} b5 {[%emt 0:01:06][%cal Bb7b5,Bb5b4][%mdl 32]} 14. Nf5 {[%emt 0:01:58] Inhibits h6.} Bxf5 {[%emt 0:00:22]} 15. Qxf5 {[%emt 0:00:17]} Nd4 {[%emt 0:00:46]} 16. Qg5 {[%emt 0:01:27]} Qa5 {[%emt 0:00:33]} 17. Kb1 {[%emt 0:00:04]} b4 {[%emt 0:00:01]} 18. Ne2 {[%emt 0:00:26] Strongly threatening Nxd4.} Nxe2 {[%emt 0:00:06]} 19. Bxe2 {[%emt 0:00:01]} Nxe4 {[%emt 0:00:02]} 20. Qe3 {[%emt 0:00:11]} (20. Qf5 b3 $1 21. axb3 (21. Qxe4 $2 d5 $19) 21... Nd2+ 22. Rxd2 Qxd2 $17) 20... d5 $40 {[%emt 0:02:30][%mdl 128] With the idea ...Rab8. White needs to defend precisely.} 21. Bd3 {[%emt 0:01:54]} ({Of course not} 21. f3 Nf6 22. f4 (22. Qxe5 $2 Rae8 $19) 22... Rfe8 23. fxe5 Qc7 $17) 21... f5 {[%emt 0:01:03]} 22. f3 {[%emt 0:00:02]} Qc5 {[%emt 0:00:02]} 23. Qxc5 {[%emt 0:02:53]} Nxc5 {[%emt 0:00:01]} 24. Be2 {[%emt 0:00:02]} Rfd8 {[%emt 0:00:53]} 25. Rd2 {[%emt 0:00:02]} (25. Rxd5 $1 $11 {keeps the balance.} Rxd5 26. Bc4) 25... Kf7 $17 {[%emt 0:01:52]} 26. Rhd1 {[%emt 0:00:02] [#]} d4 {[%emt 0:00:21]} 27. f4 {[%emt 0:00:05]} Ne4 {[%emt 0:00:07]} 28. Bc4+ {[%emt 0:00:05]} Kg6 {[%emt 0:00:51] Black is more active.} 29. Rd3 {[%emt 0:00:15]} Nf2 {[%emt 0:02:07]} ({Inferior is} 29... exf4 30. Rxd4 Rxd4 31. Rxd4 $17) 30. Rg3+ {[%emt 0:00:01]} Kh6 {[%emt 0:00:02]} 31. Rf1 {[%emt 0:00:13]} exf4 {[%emt 0:00:30]} 32. Rf3 {[%emt 0:01:13]} (32. Rb3 $17 {was forced.} Ne4 33. Kc1) 32... Ne4 {[%emt 0:00:06] ...Nd2+ is the strong threat.} 33. Rh3+ {[%emt 0:00:02]} Kg6 {[%emt 0:00:06]} 34. Kc1 {[%emt 0:00:01] Against Nd2} Rdc8 {[%emt 0:02:57]} ({Black should try} 34... h5 $17 35. Bd3 Kg5) 35. Bd3 $1 $15 {[%emt 0:00:44] [#]} Ng5 {[%emt 0:00:13]} (35... Kg5 $1 $17) 36. Rxf4 $2 {[%emt 0:00:52][%mdl 8192] White is on the road to losing.} (36. Rh4 $11 {and White stays safe.} f3 37. Rf4 fxg2 38. Bxf5+ Kh5 39. Rg1) 36... Nxh3 $19 {[%emt 0:00:05]} 37. gxh3 $11 {[%emt 0:00:29][%mdl 4096] Endgame KRR-KRB} Rf8 {[%emt 0:00:31]} 38. Rxd4 {[%emt 0:00:02]} a5 {[%emt 0:00:01]} 39. Kd2 {[%emt 0:00:05]} Kg5 {[%emt 0:00:29]} 40. Ke3 {[%emt 0:00:02]} Rad8 {[%emt 0:00:30]} 41. Rc4 {[%emt 0:00:02]} Rc8 {[%emt 0:00:02]} 42. h4+ {[%emt 0:00:07]} Kf6 {[%emt 0:00:07]} 43. Rf4 {[%emt 0:00:03]} g6 {[%emt 0:00:02]} 44. Kf3 {[%emt 0:00:11]} Ke5 {[%emt 0:00:35]} 45. Kg3 {[%emt 0:00:04]} h6 {[%emt 0:00:05]} 46. Rf1 {[%emt 0:00:08]} g5 {[%emt 0:00:03]} 47. Re1+ {[%emt 0:00:05]} Kf6 {[%emt 0:00:05]} 48. hxg5+ {[%emt 0:00:07]} hxg5 {[%emt 0:00:03]} 49. Re2 {[%emt 0:00:26]} Rh8 {[%emt 0:00:21]} 50. Rf2 {[%emt 0:00:38]} f4+ {[%emt 0:00:07]} 51. Kg2 {[%emt 0:00:19]} Rc7 {[%emt 0:00:25]} 52. h3 {[%emt 0:00:06]} Re7 {[%emt 0:00:07] White must now prevent ...Re3.} 53. Be2 {[%emt 0:00:07]} Re3 {[%emt 0:00:09]} 54. Bf3 {[%emt 0:00:06]} Rd8 {[%emt 0:00:11] Prevents Rd2.} 55. Kf1 {[%emt 0:00:20]} Ke5 {[%emt 0:00:12]} 56. Bg4 {[%emt 0:00:06]} a4 {[%emt 0:00:18][%cal Ba5a4,Ba4a3][%mdl 32]} 57. b3 {[%emt 0:00:20]} a3 {[%emt 0:00:08]} 58. Kg2 {[%emt 0:00:04]} Rd4 {[%emt 0:00:12] Threatens to win with ...Re1.} 59. Be2 {[%emt 0:00:06]} Rd2 {[%emt 0:00:03][%csl LRc2,LRe2] Black mates.} 60. Kf1 {[%emt 0:00:13]} Kd4 {[%emt 0:00:12]} 61. Rg2 {[%emt 0:00:06]} Kc3 {[%emt 0:00:05]} 62. Rxg5 {[%emt 0:00:10]} Rexe2 {[%emt 0:00:04]} 63. Rc5+ {[%emt 0:00:02]} Kb2 {[%emt 0:00:01]} 64. h4 {[%emt 0:00:02]} Rh2 {[%emt 0:00:05][%cal Rh2h1]} 65. Kg1 {[%emt 0:00:01]} Rxc2 {[%emt 0:00:03] Weighted Error Value: White=0.48/Black=0.18 (very precise)} 0-1

[Event "Szansa Chess Open 2022"]
[Site "Warsaw"]
[Date "2022.09.18"]
[Round "8"]
[White "Mazur, Wojciech"]
[Black "Janeczko, Jakub"]
[Result "0-1"]
[ECO "E67"]
[WhiteElo "1629"]
[BlackElo "2159"]
[Annotator "TA"]
[PlyCount "56"]
[EventDate "2022.09.17"]
[EventCountry "POL"]
[SourceTitle "playchess.com"]
[Source "ChessBase"]
[SourceQuality "1"]
[TimeControl "900+10"]

{[%evp 16,56,28,32,39,7,37,0,0,-8,7,-131,-121,-350,-297,-306,-287,-439,-339,-434,-433,-452,-439,-428,-432,-441,-409,-433,-414,-793,-728,-1376,-1516,-1837,-1500,-1338,-1211,-6024,-1464,-1211,-1203,-29998,-29999]} 1. Nf3 {[%emt 0:00:01]} Nf6 {[%emt 0:00:03]} 2. c4 {[%emt 0:00:22]} g6 {[%emt 0:00:03]} 3. Nc3 {[%emt 0:00:01]} Bg7 {[%emt 0:00:01]} 4. g3 {[%emt 0:00:01]} O-O {[%emt 0:00:02]} 5. Bg2 {[%emt 0:00:01]} d6 {[%emt 0:00:07]} 6. d4 {[%emt 0:00:17]} Nbd7 {[%emt 0:00:14]} 7. e4 {[%emt 0:00:44]} e5 {[%emt 0:00:04]} 8. O-O {[%emt 0:00:53]} exd4 {[%emt 0:00:02]} 9. Nxd4 {[%emt 0:00:02]} (9. Qxd4 Re8 10. Bg5 h6 11. Bxf6 Nxf6 $11) 9... c6 {[%emt 0:00:06] E68: King's Indian: Fianchetto: 6...Nbd7 7 0-0 e5 8 e4.} 10. Bg5 {[%emt 0:01:22]} Qb6 {[%emt 0:00:27]} 11. Nb3 {[%emt 0:00:05] [#]} a5 $146 {[%emt 0:00:23][%cal Ba7a5,Ba5a4,Ba4b3][%mdl 32] The position is equal.} ({Predecessor:} 11... Ne5 12. Bxf6 Bxf6 13. Qxd6 Be6 14. Na4 Qd8 15. Qxd8 Rfxd8 16. f4 Nxc4 17. e5 Be7 {0-1 (66) Bansal,S (1751)-Mugalu,H (1836) London 2019}) 12. Qxd6 {[%emt 0:04:15]} a4 {[%emt 0:00:01]} 13. Bxf6 {[%emt 0:00:02]} (13. e5 $11 Ne8 14. Qa3) 13... Bxf6 $17 {[%emt 0:00:22]} 14. Bh3 $2 {[%emt 0:00:05] [#]} ({Not} 14. c5 $2 Qd8 15. Nd2 a3 $19) (14. Qa3 $17) 14... Bxc3 {[%emt 0:00:56]} 15. bxc3 {[%emt 0:00:07]} axb3 {[%emt 0:00:03]} 16. Bxd7 {[%emt 0:01:04]} (16. axb3 {is the only way for White.} Rxa1 17. Rxa1) 16... Rd8 {[%emt 0:00:04]} 17. c5 {[%emt 0:01:00]} Qa5 {[%emt 0:01:33]} ({Stronger than} 17... Rxd7 18. Qxd7 Bxd7 19. cxb6 $11) 18. axb3 {[%emt 0:02:30]} Qxa1 {[%emt 0:00:05]} 19. Rxa1 {[%emt 0:00:10]} Rxa1+ {[%emt 0:00:10]} 20. Kg2 {[%emt 0:00:00]} Rxd7 {[%emt 0:00:19]} ({Don't blunder} 20... Bxd7 $2 21. Qc7 Raa8 22. Qxb7 $19) 21. Qe5 {[%emt 0:00:58]} Rd8 {[%emt 0:00:04] Against Qe8+} 22. h4 {[%emt 0:00:01]} (22. h3 $142) 22... h5 $19 {[%emt 0:00:07]} 23. g4 {[%emt 0:00:13]} Bxg4 {[%emt 0:00:17]} 24. Qc7 {[%emt 0:00:04]} Rd7 {[%emt 0:00:03]} 25. Qb8+ {[%emt 0:00:11]} Kg7 {[%emt 0:00:05]} 26. f3 {[%emt 0:00:02]} Be6 {[%emt 0:00:02] [#] And now ...Rd3 would win.} 27. Qe5+ {[%emt 0:00:05]} Kh7 {[%emt 0:00:02] ...Rd2+ is the strong threat.} 28. f4 {[%emt 0:00:11]} Ra2+ {[%emt 0:00:23] White did not feel at home in the position after the opening.  Weighted Error Value: White=1.76/Black=0.76} 0-1